bitfinex/quotes_BTCUSD_20250512
["timestamp","ask_amount","ask_price","bid_price","bid_amount"]
[1747065867625,0.83182175,102570.0,102560.0,0.5629078]
[1747065867857,0.62696326,102570.0,102560.0,1.08452342]
[1747065868082,0.62696326,102570.0,102560.0,1.11292361]
[1747065868083,0.37611193,102570.0,102560.0,1.11292361]
[1747065868304,0.540506,102570.0,102560.0,1.12267333]
[1747065868512,0.56000429,102570.0,102560.0,1.13242314]
[1747065868736,0.53075714,102570.0,102560.0,1.13242314]
[1747065868977,0.69170782,102580.0,102570.0,0.61983575]
[1747065869196,0.9061737,102580.0,102570.0,1.10245259]
[1747065869415,0.91592218,102580.0,102570.0,1.10245259]
[1747065869635,0.72095241,102580.0,102570.0,1.10245259]
[1747065869869,0.19497873,102600.0,102590.0,0.34]
[1747065870129,0.32977069,102600.0,102590.0,1.06426391]
[1747065870348,0.10560012,102600.0,102590.0,1.08375831]
[1747065870563,0.12509262,102600.0,102590.0,1.12270518]
[1747065870793,0.27050497,102610.0,102600.0,0.59117038]
[1747065871020,0.2689043,102620.0,102610.0,0.56414853]
[1747065871252,0.26072,102630.0,102620.0,0.56412669]
[1747065871507,0.28994978,102630.0,102620.0,1.72183228]
[1747065871729,0.28020624,102630.0,102620.0,1.7315763]
[1747065871957,0.03897294,102630.0,102620.0,1.07843849]
[1747065872177,0.23384839,102630.0,102620.0,1.40462008]
[1747065872412,0.00974307,102630.0,102620.0,1.1275501]
[1747065872649,0.72506118,102660.0,102640.0,0.62288236]
[1747065872874,0.81117497,102660.0,102650.0,0.3689]
[1747065873132,0.29081497,102660.0,102650.0,0.3689]
[1747065873373,0.55093497,102660.0,102650.0,0.3689]
[1747065873843,0.55093497,102660.0,102650.0,0.34]
[1747065874134,0.81109497,102660.0,102650.0,0.34]
[1747065874369,0.81109497,102660.0,102650.0,0.57397866]
[1747065874619,0.42124,102670.0,102660.0,0.56403936]
[1747065874912,0.13481263,102670.0,102660.0,1.08580516]
[1747065875148,0.31013286,102670.0,102660.0,0.3694]
[1747065875401,0.31013286,102670.0,102660.0,0.34]
[1747065875644,0.21431983,102650.0,102640.0,0.3694]
[1747065875853,0.01948301,102650.0,102640.0,0.5934835]
[1747065876081,0.00974022,102660.0,102650.0,0.28156129]
[1747065876290,0.10559348,102670.0,102660.0,0.59343936]
[1747065876519,0.23375653,102670.0,102660.0,1.10416475]
[1747065876758,0.7143009,102680.0,102660.0,1.10416475]
[1747065876759,0.47493831,102680.0,102670.0,0.55427808]
[1747065876969,0.20450152,102690.0,102670.0,1.09552233]
[1747065877190,0.02921508,102680.0,102670.0,0.6409959]
[1747065877405,0.00973814,102680.0,102670.0,1.9114169]
[1747065877627,0.31009103,102690.0,102680.0,0.2427575]
[1747065877862,0.21423673,102690.0,102680.0,0.0285]
[1747065878332,0.31009103,102690.0,102680.0,0.0285]
[1747065879020,0.20451869,102680.0,102670.0,0.368]
[1747065879251,0.30037299,102680.0,102670.0,0.368]
[1747065879474,0.30037299,102680.0,102670.0,0.34]
[1747065880850,0.30037299,102680.0,102650.0,0.4446]
[1747065880851,0.21429895,102660.0,102650.0,0.4446]
[1747065881110,0.31015325,102660.0,102650.0,0.4166]
[1747065881911,0.31015325,102660.0,102650.0,0.7566]
[1747065882145,0.31015325,102660.0,102650.0,0.7576]
[1747065882824,0.31015325,102660.0,102650.0,0.7586]
[1747065883150,0.31015325,102660.0,102650.0,0.342]
[1747065883903,0.31015325,102660.0,102650.0,0.341]
[1747065884471,1.03107325,102660.0,102650.0,0.001]
[1747065884886,1.03107325,102660.0,102630.0,0.61361006]
[1747065884887,0.23382524,102640.0,102630.0,0.61361006]
[1747065885114,0.21434109,102640.0,102630.0,0.3973]
[1747065885341,0.73082109,102640.0,102630.0,0.3698]
[1747065885559,0.82667539,102640.0,102630.0,0.3698]
[1747065886464,0.82667539,102640.0,102630.0,0.3708]
[1747065886714,0.82667539,102640.0,102630.0,0.3718]
[1747065886949,0.82667539,102640.0,102630.0,0.342]
[1747065887174,0.82667539,102640.0,102630.0,0.002]
[1747065888089,0.82667539,102640.0,102630.0,0.001]
[1747065888338,1.66088185,102640.0,102630.0,0.001]
[1747065888567,0.21440337,102610.0,102600.0,0.01513356]
[1747065888800,1.24653767,102610.0,102600.0,0.01513356]
[1747065889038,0.21444517,102590.0,102580.0,0.44782975]
[1747065889260,0.0194944,102590.0,102580.0,0.68124781]
[1747065889493,0.19494862,102600.0,102590.0,0.28249251]
[1747065889494,0.47853038,102600.0,102590.0,0.28249251]
[1747065889712,0.47853038,102600.0,102590.0,1.10511116]
[1747065889934,0.47853038,102600.0,102590.0,0.3983]
[1747065889935,0.57438468,102600.0,102590.0,0.3983]
[1747065890167,0.57438468,102600.0,102590.0,0.38468624]
[1747065890168,0.56463876,102600.0,102590.0,0.38468624]
[1747065890400,0.56463876,102600.0,102590.0,0.35488624]
[1747065890643,0.82491876,102600.0,102590.0,0.35488624]
[1747065890869,0.82491876,102600.0,102590.0,0.58918445]
[1747065891307,0.81489256,102600.0,102590.0,0.38448624]
[1747065891538,0.81489256,102600.0,102590.0,0.35488624]
[1747065892235,0.81489256,102600.0,102590.0,0.01488624]
[1747065892682,0.21446607,102580.0,102570.0,0.0273]
[1747065892896,0.31032037,102580.0,102570.0,0.0273]
[1747065893122,0.31032037,102580.0,102570.0,0.3673]
[1747065893444,0.20473802,102570.0,102560.0,0.19500737]
[1747065893646,0.21448717,102570.0,102560.0,1.11108386]
[1747065893858,0.21448717,102570.0,102560.0,1.10133386]
[1747065893859,0.72868717,102570.0,102560.0,1.10133386]
[1747065894086,0.72868717,102570.0,102560.0,1.44133386]
[1747065894300,0.72868717,102570.0,102560.0,0.866826]
[1747065894503,0.72868717,102570.0,102560.0,0.0279]
[1747065894504,0.81479232,102570.0,102560.0,0.0279]
[1747065894725,0.21450829,102560.0,102550.0,0.2711894]
[1747065894948,0.21450829,102560.0,102550.0,0.23267815]
[1747065895163,0.21450829,102560.0,102550.0,0.03765134]
[1747065895371,0.21450829,102560.0,102550.0,0.22292681]
[1747065895573,0.21450829,102560.0,102550.0,0.58242901]
[1747065895808,0.2908621,102560.0,102540.0,0.4452]
[1747065896155,0.01950182,102550.0,102540.0,0.65974809]
[1747065896251,0.01950125,102550.0,102540.0,1.00949971]
[1747065896477,0.01950125,102550.0,102540.0,1.54575089]
[1747065896703,0.10560449,102560.0,102550.0,0.24242901]
[1747065896923,0.10560421,102560.0,102550.0,0.24242901]
[1747065897147,0.68382915,102570.0,102560.0,0.5726579]
[1747065897399,0.96627583,102570.0,102560.0,1.0845239]
[1747065897619,0.93702877,102570.0,102560.0,1.09427371]
[1747065897852,0.93686877,102570.0,102560.0,2.23145143]
[1747065898073,0.51582867,102570.0,102560.0,1.33660243]
[1747065898295,0.50608,102570.0,102560.0,1.33660243]
[1747065898523,0.22419261,102590.0,102580.0,0.53496977]
[1747065898765,0.81597985,102590.0,102580.0,0.56236977]
[1747065898985,0.81597985,102590.0,102580.0,0.3674]
[1747065899197,0.81597985,102590.0,102580.0,0.34]
[1747065899847,0.81797985,102590.0,102580.0,0.34]
[1747065900077,0.02924687,102570.0,102560.0,0.619958]
[1747065900307,0.2164363,102570.0,102560.0,0.3674]
[1747065900522,0.31034147,102570.0,102560.0,0.34]
[1747065900739,0.01950144,102550.0,102540.0,0.31084257]
[1747065900949,0.01950144,102550.0,102540.0,1.25005357]
[1747065900950,0.01950135,102550.0,102540.0,1.25005357]
[1747065901193,0.21452882,102550.0,102540.0,0.2815885]
[1747065901417,0.21452882,102550.0,102540.0,0.6313406]
[1747065901646,0.21452882,102550.0,102540.0,0.6410926]
[1747065901867,0.2145292,102550.0,102540.0,0.05784267]
[1747065902075,0.2145292,102550.0,102540.0,0.27239298]
[1747065902288,0.2145292,102550.0,102540.0,0.26264079]
[1747065902533,0.2145292,102550.0,102540.0,0.5928885]
[1747065902766,0.3103835,102550.0,102540.0,0.02984267]
[1747065903035,0.3103835,102550.0,102540.0,0.03284267]
[1747065903292,0.10560526,102550.0,102540.0,0.74766716]
[1747065903495,0.32013446,102550.0,102540.0,0.58955012]
[1747065903926,0.30063235,102550.0,102540.0,0.343]
[1747065904140,0.0958543,102550.0,102540.0,0.59530155]
[1747065904355,0.01949915,102560.0,102550.0,0.60203045]
[1747065904574,0.00974953,102560.0,102550.0,1.12309606]
[1747065904789,0.70941802,102570.0,102560.0,0.59215771]
[1747065904790,0.5241782,102570.0,102560.0,0.59215771]
[1747065905006,0.8345191,102570.0,102560.0,0.58240809]
[1747065905230,0.31034147,102570.0,102560.0,0.5629078]
[1747065905441,0.81506147,102570.0,102560.0,0.58240848]
[1747065905646,0.81506147,102570.0,102560.0,0.59215867]
[1747065906094,0.3200909,102570.0,102560.0,0.61165858]
[1747065906308,0.3210909,102570.0,102560.0,0.58240828]
[1747065906525,0.001,102570.0,102560.0,0.58240828]
[1747065906744,0.00974782,102580.0,102570.0,0.28173622]
[1747065906959,0.03899184,102580.0,102570.0,0.7838506]
[1747065907171,0.23396171,102580.0,102570.0,0.76435297]
[1747065907412,0.21446626,102580.0,102570.0,0.23353821]
[1747065907646,0.21448736,102570.0,102560.0,0.3679]
[1747065907875,0.02924725,102570.0,102560.0,0.57265809]
[1747065908096,0.22423603,102570.0,102560.0,0.59315819]
[1747065908306,0.03899659,102570.0,102560.0,0.61165772]
[1747065908518,0.01949801,102570.0,102560.0,1.10402333]
[1747065908739,0.02924725,102570.0,102560.0,1.10402333]
[1747065909223,0.23398537,102570.0,102560.0,0.59215819]
[1747065909431,0.03899659,102570.0,102560.0,0.61265772]
[1747065909862,0.2437348,102570.0,102560.0,0.61265772]
[1747065910083,0.03899659,102570.0,102560.0,0.61265772]
[1747065910346,0.01949744,102570.0,102560.0,0.61265772]
[1747065910550,0.03899573,102570.0,102560.0,1.13292333]
[1747065911865,0.03899583,102570.0,102560.0,0.6126581]
[1747065912076,0.03899573,102570.0,102560.0,0.6126581]
[1747065912497,0.02924659,102570.0,102560.0,0.6126581]
[1747065912726,0.03899564,102570.0,102560.0,0.6126581]
[1747065912983,0.03899555,102570.0,102560.0,0.6126581]
[1747065913211,0.03382824,102570.0,102560.0,0.6126581]
[1747065913646,0.3122906,102570.0,102560.0,0.341]
[1747065913862,0.31034147,102570.0,102560.0,0.001]
[1747065914336,0.31034147,102570.0,102560.0,0.341]
[1747065914558,0.31034147,102570.0,102560.0,0.001]
[1747065917648,0.0958543,102570.0,102560.0,1.05762342]
[1747065917906,0.28236659,102570.0,102560.0,1.08492342]
[1747065918155,0.26286801,102580.0,102570.0,0.22423594]
[1747065918398,0.57318904,102580.0,102570.0,0.73415297]
[1747065918885,0.00974782,102580.0,102570.0,0.74390193]
[1747065919144,0.23393976,102590.0,102580.0,0.3673]
[1747065919362,0.31029985,102590.0,102580.0,0.58176664]
[1747065919597,0.56341966,102590.0,102580.0,1.09362836]
[1747065919848,0.26286668,102590.0,102580.0,1.13307618]
[1747065920064,0.47731194,102590.0,102580.0,1.10383225]
[1747065920283,0.48705947,102590.0,102580.0,1.13307646]
[1747065920523,0.26286677,102590.0,102580.0,1.1330758]
[1747065920765,0.29210842,102590.0,102580.0,0.64071019]
[1747065920986,0.30285519,102590.0,102580.0,1.1330758]
[1747065921437,0.30385586,102590.0,102580.0,1.1330758]
[1747065921683,0.49780663,102590.0,102580.0,1.09408377]
[1747065921893,0.56442004,102590.0,102580.0,0.34]
[1747065922105,0.56442004,102590.0,102580.0,0.54471806]
[1747065922323,0.27361393,102590.0,102580.0,1.09572779]
[1747065922512,0.28336127,102590.0,102580.0,1.12462779]
[1747065922778,0.28336118,102590.0,102580.0,1.12462779]
[1747065923002,0.26447402,102590.0,102580.0,1.85931079]
[1747065923227,0.27409371,102590.0,102580.0,1.12462779]
[1747065923448,0.26434627,102590.0,102580.0,1.09388484]
[1747065923677,0.001,102590.0,102580.0,1.20833184]
[1747065923908,0.67428,102610.0,102580.0,1.16933943]
[1747065924144,0.12508711,102620.0,102610.0,0.54464407]
[1747065924388,0.12508711,102620.0,102610.0,1.06480239]
[1747065924683,0.02923281,102620.0,102610.0,1.07454745]
[1747065924902,0.21438286,102620.0,102610.0,0.83092266]
[1747065925129,0.21438286,102620.0,102610.0,0.5739584]
[1747065925351,0.69661559,102630.0,102620.0,0.20463837]
[1747065925580,0.69661559,102630.0,102610.0,1.055071]
[1747065925581,0.00974421,102620.0,102610.0,1.055071]
[1747065925808,0.80221353,102630.0,102620.0,0.34]
[1747065925992,0.80221353,102630.0,102620.0,0.80162266]
[1747065926211,0.80221353,102630.0,102620.0,0.35448573]
[1747065927569,0.82991353,102630.0,102620.0,0.35448573]
[1747065927785,0.80421353,102630.0,102620.0,0.35448573]
[1747065929844,0.83251353,102630.0,102620.0,0.35448573]
[1747065930920,0.83251353,102630.0,102620.0,0.01448573]
[1747065931183,0.20463827,102620.0,102610.0,0.02905008]
[1747065931398,0.30049257,102620.0,102610.0,0.01456826]
[1747065931615,0.21442465,102600.0,102590.0,0.65052805]
[1747065931835,0.70890465,102600.0,102590.0,0.30078052]
[1747065932079,0.51397231,102600.0,102590.0,1.15934445]
[1747065932356,0.49448,102600.0,102590.0,0.95874145]
[1747065932577,0.02923776,102600.0,102590.0,1.2207117]
[1747065932802,0.00974573,102600.0,102590.0,1.2207117]
[1747065933028,0.22414909,102610.0,102600.0,0.59127057]
[1747065933260,0.22414909,102610.0,102600.0,1.05289342]
[1747065933261,0.32000339,102610.0,102600.0,1.05289342]
[1747065933479,0.01949013,102610.0,102600.0,1.07737542]
[1747065933692,0.02923557,102610.0,102600.0,1.10587542]
[1747065933915,0.22414891,102610.0,102600.0,0.38183608]
[1747065934137,0.31025805,102610.0,102600.0,0.35473608]
[1747065934360,0.31025805,102610.0,102600.0,0.35573608]
[1747065935070,0.31025805,102610.0,102600.0,0.01673608]
[1747065937089,0.79918071,102610.0,102600.0,0.01673608]
[1747065937322,1.14142156,102610.0,102600.0,0.002]
[1747065937543,1.22941216,102610.0,102600.0,0.002]
[1747065937763,1.22941216,102610.0,102600.0,0.001]
[1747065938451,0.21448698,102570.0,102560.0,0.0145992]
[1747065938685,0.97718128,102570.0,102560.0,0.09262895]
[1747065938951,1.22546128,102570.0,102560.0,0.0294864]
[1747065939166,0.20475799,102560.0,102550.0,0.05941178]
[1747065939400,0.30061229,102560.0,102550.0,0.05941178]
[1747065939635,0.60061229,102560.0,102550.0,0.05941178]
[1747065940541,0.20479793,102540.0,102530.0,0.0292]
[1747065940727,0.79421223,102540.0,102530.0,0.0292]
[1747065940953,0.79421223,102540.0,102530.0,0.38416113]
[1747065941836,0.79421223,102540.0,102530.0,0.38816113]
[1747065942044,0.79421223,102540.0,102530.0,0.39216113]
[1747065942713,0.79421223,102540.0,102530.0,0.36296113]
[1747065943606,0.79421223,102540.0,102530.0,0.37679446]
[1747065943838,0.79421223,102540.0,102530.0,0.03679446]
[1747065944291,1.42181223,102540.0,102530.0,0.02183333]
[1747065944512,0.21461253,102510.0,102500.0,0.14282975]
[1747065944728,0.80246683,102510.0,102500.0,0.11572975]
[1747065944936,0.80246683,102510.0,102500.0,0.45572975]
[1747065945170,0.80246683,102510.0,102500.0,0.01]
[1747065945382,0.79271216,102510.0,102500.0,0.02397142]
[1747065945807,0.79271216,102510.0,102500.0,0.74492871]
[1747065946021,0.30071216,102510.0,102500.0,0.72541719]
[1747065946239,0.69649501,102520.0,102510.0,0.369]
[1747065946500,0.80208608,102520.0,102510.0,1.10600796]
[1747065946720,0.46746473,102520.0,102510.0,1.10600796]
[1747065946931,0.54381218,102520.0,102510.0,0.3988]
[1747065947149,0.54381218,102520.0,102510.0,0.369]
[1747065947367,0.54381218,102520.0,102510.0,0.57385796]
[1747065947574,0.29093818,102520.0,102510.0,0.57485796]
[1747065947813,0.7057914,102520.0,102510.0,0.61441282]
[1747065948032,0.79189227,102520.0,102510.0,0.4008]
[1747065948246,0.79189227,102520.0,102510.0,0.342]
[1747065949093,0.79189227,102520.0,102510.0,0.371]
[1747065949299,0.79189227,102520.0,102510.0,0.4008]
[1747065949950,0.79189227,102520.0,102510.0,0.342]
[1747065950621,0.79189227,102520.0,102510.0,0.57375805]
[1747065950906,0.79189227,102520.0,102510.0,0.002]
[1747065951126,1.34268751,102520.0,102510.0,0.002]
[1747065951333,1.16463312,102520.0,102510.0,0.002]
[1747065951548,1.15009227,102520.0,102510.0,0.002]
[1747065952215,1.15009227,102520.0,102510.0,0.001]
[1747065952484,1.14077227,102520.0,102510.0,0.001]
[1747065953370,0.50485786,102510.0,102500.0,0.01]
[1747065953629,0.62961216,102510.0,102500.0,0.01]
[1747065954107,0.92961216,102510.0,102500.0,0.01]
[1747065954374,0.95761216,102510.0,102500.0,0.01]
[1747065954645,0.95761216,102510.0,102500.0,0.011]
[1747065955166,1.4502074,102510.0,102500.0,0.011]
[1747065955398,0.5562187,102500.0,102490.0,0.001348]
[1747065955613,0.20499785,102440.0,102430.0,0.0296]
[1747065956086,0.20499785,102440.0,102430.0,0.04331079]
[1747065956306,0.30085215,102440.0,102430.0,0.12134054]
[1747065957017,0.30085215,102440.0,102430.0,0.13614726]
[1747065957250,0.31061367,102440.0,102430.0,0.63850507]
[1747065957474,0.32037538,102440.0,102430.0,0.69092759]
[1747065957698,0.12513944,102440.0,102430.0,0.6909274]
[1747065957939,0.32037567,102440.0,102430.0,0.39811751]
[1747065958190,0.20499804,102440.0,102430.0,0.40711751]
[1747065958402,0.29963156,102440.0,102430.0,0.37151751]
[1747065958637,0.30085234,102440.0,102430.0,0.35671079]
[1747065958863,0.30085234,102440.0,102430.0,0.36071079]
[1747065959333,0.30085234,102440.0,102430.0,0.02071079]
[1747065960478,0.30085234,102440.0,102430.0,0.01771079]
[1747065960663,0.30085234,102440.0,102430.0,0.38501079]
[1747065960929,0.30085234,102440.0,102430.0,0.38701079]
[1747065961171,0.0958543,102440.0,102430.0,0.57826608]
[1747065961404,1.04133717,102450.0,102440.0,0.56253623]
[1747065961405,0.78490314,102450.0,102440.0,0.56253623]
[1747065961638,0.90027336,102450.0,102440.0,0.3673]
[1747065961944,0.89051298,102450.0,102440.0,0.3673]
[1747065962494,0.89051298,102450.0,102440.0,0.34]
[1747065962733,0.68553496,102450.0,102440.0,0.56333623]
[1747065963008,0.4214,102460.0,102450.0,0.62029859]
[1747065963251,0.34478289,102460.0,102450.0,0.62029859]
[1747065963478,0.33502375,102460.0,102450.0,0.63483944]
[1747065963716,0.3545425,102460.0,102450.0,1.04523944]
[1747065963963,0.36430212,102460.0,102450.0,1.03069859]
[1747065964192,0.34578298,102460.0,102450.0,1.03069859]
[1747065964426,0.33602375,102460.0,102450.0,1.53783468]
[1747065964660,0.33502375,102460.0,102450.0,1.04523944]
[1747065964937,0.00975723,102480.0,102470.0,0.55469573]
[1747065965178,0.53523307,102480.0,102470.0,0.61149687]
[1747065965396,0.03902999,102480.0,102470.0,0.62125477]
[1747065965627,0.49517646,102500.0,102470.0,0.59197907]
[1747065965628,0.80241646,102500.0,102470.0,0.59197907]
[1747065965879,0.65049831,102490.0,102480.0,1.09271317]
[1747065966099,0.63098593,102490.0,102480.0,0.60011803]
[1747065966314,0.62122927,102490.0,102480.0,0.3672]
[1747065967018,0.83336836,102500.0,102490.0,0.0272]
[1747065967234,0.21465459,102490.0,102480.0,0.3952]
[1747065967447,0.31050889,102490.0,102480.0,0.34]
[1747065967677,0.31050889,102490.0,102480.0,0.3672]
[1747065967902,0.31050889,102490.0,102480.0,0.58187536]
[1747065968117,0.31050889,102490.0,102480.0,0.3672]
[1747065968553,0.21465459,102490.0,102480.0,0.56236003]
[1747065968770,0.21465459,102490.0,102480.0,1.10247079]
[1747065968986,0.20489783,102490.0,102480.0,0.3672]
[1747065969213,0.30075213,102490.0,102480.0,0.3672]
[1747065969434,0.30075213,102490.0,102480.0,0.376958]
[1747065969713,0.52192817,102500.0,102490.0,0.3697]
[1747065969941,0.61778247,102500.0,102490.0,0.3697]
[1747065970508,0.31054247,102500.0,102490.0,0.3697]
[1747065970756,0.92902247,102500.0,102490.0,0.3697]
[1747065971000,0.62819371,102520.0,102500.0,0.60437738]
[1747065971235,0.32674705,102520.0,102510.0,0.77841338]
[1747065971460,0.32674743,102520.0,102510.0,0.74604612]
[1747065971725,0.01950695,102520.0,102510.0,0.76058697]
[1747065971986,0.32103257,102530.0,102520.0,0.62929911]
[1747065972211,0.52585114,102530.0,102520.0,0.85737893]
[1747065972676,0.52585114,102530.0,102520.0,0.34]
[1747065972677,0.62170544,102530.0,102520.0,0.34]
[1747065973357,0.21461253,102510.0,102500.0,0.0292]
[1747065973636,0.21461253,102510.0,102500.0,0.3692]
[1747065973868,0.20485442,102520.0,102510.0,0.01950962]
[1747065974094,0.3007091,102520.0,102510.0,0.83284883]
[1747065974340,0.19506485,102530.0,102510.0,1.10586155]
[1747065974583,0.60095915,102530.0,102520.0,0.55194883]
[1747065974841,0.50510485,102530.0,102520.0,1.10454061]
[1747065975061,0.52461104,102530.0,102520.0,0.88994883]
[1747065975773,0.52461104,102530.0,102520.0,0.89970302]
[1747065975990,0.50510485,102530.0,102520.0,0.88994883]
[1747065976243,0.20490686,102540.0,102530.0,0.3677]
[1747065976459,0.52181915,102540.0,102530.0,0.88744883]
[1747065976912,0.21465915,102540.0,102530.0,0.90101637]
[1747065977179,0.31051345,102540.0,102530.0,0.38126754]
[1747065977685,0.21465915,102540.0,102530.0,0.87411637]
[1747065977912,0.21465915,102540.0,102530.0,0.90371637]
[1747065978597,0.20490696,102540.0,102530.0,0.90371637]
[1747065979967,0.92126413,102550.0,102540.0,0.55144883]
[1747065980191,0.50169508,102560.0,102550.0,0.86174883]
[1747065980424,0.50169508,102560.0,102550.0,0.3689]
[1747065980654,0.59754938,102560.0,102550.0,0.34]
[1747065981107,0.21454974,102540.0,102530.0,0.04106754]
[1747065981354,0.21454974,102540.0,102530.0,0.38106754]
[1747065981580,0.31040404,102540.0,102530.0,0.35356754]
[1747065981811,0.31040404,102540.0,102530.0,0.01356754]
[1747065982284,0.31040404,102540.0,102520.0,0.34]
[1747065982285,0.2048179,102530.0,102520.0,0.86204883]
[1747065982508,0.0097521,102540.0,102530.0,0.59196485]
[1747065982719,0.02925544,102540.0,102530.0,1.1238253]
[1747065983175,0.02925534,102540.0,102530.0,2.7051873]
[1747065983407,0.23405346,102540.0,102530.0,1.02010694]
[1747065983641,0.50169508,102560.0,102530.0,1.02010694]
[1747065983642,0.19509508,102560.0,102550.0,0.19502681]
[1747065983866,0.00974981,102560.0,102550.0,1.0958789]
[1747065984089,0.02924944,102560.0,102550.0,1.1237789]
[1747065984327,0.32657782,102570.0,102560.0,0.59325781]
[1747065984598,0.54106451,102570.0,102560.0,1.10475692]
[1747065984803,0.52156707,102570.0,102560.0,1.09500702]
[1747065985069,0.61649639,102580.0,102570.0,0.20473821]
[1747065985290,0.19509311,102590.0,102580.0,0.03]
[1747065985479,0.29094741,102590.0,102580.0,0.52284883]
[1747065985697,0.29094741,102590.0,102580.0,0.03]
[1747065985907,0.19509311,102590.0,102580.0,0.86284883]
[1747065986115,0.19509311,102590.0,102580.0,1.0578186]
[1747065986369,0.19509311,102590.0,102580.0,0.37]
[1747065986803,0.80629282,102600.0,102580.0,1.08546291]
[1747065987013,0.01949345,102590.0,102580.0,0.59261408]
[1747065987214,0.23393966,102590.0,102580.0,0.57311816]
[1747065987441,0.22419279,102590.0,102580.0,0.60311816]
[1747065987674,0.22419279,102590.0,102580.0,0.0584]
[1747065987881,0.21444564,102590.0,102580.0,0.03]
[1747065988337,0.21444564,102590.0,102580.0,0.37]
[1747065988568,0.31029994,102590.0,102580.0,0.34]
[1747065989663,0.21448698,102570.0,102560.0,0.86194883]
[1747065989889,0.21448698,102570.0,102560.0,0.3691]
[1747065990110,0.31034128,102570.0,102560.0,0.04403084]
[1747065990588,0.31034128,102570.0,102560.0,0.01493084]
[1747065991017,0.31034128,102570.0,102560.0,0.006]
[1747065991648,0.31034128,102570.0,102560.0,0.003]
[1747065991867,0.20475799,102560.0,102550.0,0.34]
[1747065992079,0.20477796,102550.0,102540.0,0.52244883]
[1747065992293,0.20477796,102550.0,102540.0,0.86244883]
[1747065992515,0.20477796,102550.0,102540.0,1.06724676]
[1747065992731,0.21450809,102560.0,102550.0,0.56312681]
[1747065992991,0.2340081,102560.0,102550.0,1.08347564]
[1747065993216,0.22425838,102560.0,102550.0,0.3681]
[1747065993428,0.21450838,102560.0,102550.0,0.3681]
[1747065993644,0.00975019,102560.0,102550.0,0.7631652]
[1747065993871,0.20473812,102570.0,102560.0,0.58380819]
[1747065994109,1.23437522,102580.0,102570.0,0.57323812]
[1747065994309,1.24412342,102580.0,102570.0,1.05474543]
[1747065994515,1.24412342,102580.0,102570.0,0.83050864]
[1747065994730,1.25385427,102580.0,102570.0,1.05474477]
[1747065994941,0.2339617,102580.0,102570.0,1.08224496]
[1747065995147,0.2339617,102580.0,102570.0,1.09199392]
[1747065995559,0.24371018,102580.0,102570.0,1.09199392]
[1747065995758,0.23396255,102580.0,102570.0,1.09199392]
[1747065996187,0.21446654,102580.0,102570.0,0.83050864]
[1747065996404,0.21446654,102580.0,102570.0,0.3685]
[1747065996645,0.21446654,102580.0,102570.0,0.57323821]
[1747065996858,0.79699077,102590.0,102580.0,0.56196977]
[1747065997088,0.59204507,102590.0,102580.0,1.02397841]
[1747065997304,0.90063251,102590.0,102580.0,0.34]
[1747065997972,0.90063251,102590.0,102580.0,0.83160864]
[1747065998385,0.32073402,102590.0,102580.0,1.09267082]
[1747065998608,0.0097463,102600.0,102590.0,0.58404517]
[1747065998821,0.0097463,102600.0,102590.0,1.05580068]
[1747065998822,0.01949212,102600.0,102590.0,1.05580068]
[1747065999037,0.73228516,102610.0,102600.0,0.25187038]
[1747065999269,0.73228516,102610.0,102600.0,0.71387902]
[1747065999270,1.04993547,102610.0,102600.0,0.71387902]
[1747065999481,1.25459378,102610.0,102600.0,0.7041332]
[1747065999693,1.24484891,102610.0,102600.0,0.7041332]
[1747065999914,0.0001,102610.0,102600.0,0.70413329]
[1747066000141,0.00984478,102610.0,102600.0,2.2470699]
[1747066000378,0.01948823,102620.0,102610.0,0.62024834]
[1747066000660,0.23384859,102630.0,102620.0,0.57233846]
[1747066000859,0.22410542,102630.0,102620.0,0.82970864]
[1747066001077,0.21436197,102630.0,102620.0,0.82970864]
[1747066001289,0.31021627,102630.0,102620.0,0.34]
[1747066001972,0.19496517,102640.0,102630.0,0.37894373]
[1747066002179,0.19496517,102640.0,102630.0,1.06563242]
[1747066002180,0.21445027,102640.0,102630.0,1.06563242]
[1747066002395,0.21445027,102640.0,102630.0,1.08947804]
[1747066002611,0.22419306,102640.0,102630.0,1.09922158]
[1747066003047,0.5244047,102650.0,102640.0,0.2045984]
[1747066003277,0.22408369,102640.0,102630.0,1.0785344]
[1747066003486,0.21434119,102640.0,102630.0,0.84591588]
[1747066003699,0.21434119,102640.0,102630.0,0.87451588]
[1747066003913,0.21434119,102640.0,102630.0,0.38270198]
[1747066004119,0.31019549,102640.0,102630.0,0.35410198]
[1747066004338,0.31019549,102640.0,102630.0,0.01410198]
[1747066004622,0.20461833,102630.0,102620.0,0.34]
[1747066004847,0.30047263,102630.0,102620.0,0.34]
[1747066005068,0.30047263,102630.0,102620.0,0.35405228]
[1747066006222,0.01948699,102630.0,102620.0,1.13503717]
[1747066006437,0.23384915,102630.0,102620.0,1.14981817]
[1747066006658,0.1948558,102640.0,102630.0,0.57271843]
[1747066006903,0.21434071,102640.0,102630.0,1.05478869]
[1747066007117,0.2045984,102640.0,102630.0,0.8599139]
[1747066007320,0.0097426,102640.0,102630.0,1.06453223]
[1747066007537,0.2240834,102640.0,102630.0,1.08198869]
[1747066007756,0.21434109,102640.0,102630.0,0.89685763]
[1747066008300,0.21434109,102640.0,102630.0,1.10147596]
[1747066008520,0.50490824,102650.0,102640.0,0.3681]
[1747066008521,0.81037008,102650.0,102640.0,0.3681]
[1747066008743,0.90622438,102650.0,102640.0,0.8599139]
[1747066009429,0.63501589,102650.0,102640.0,1.08399692]
[1747066009681,0.51544031,102650.0,102640.0,0.9163438]
[1747066009924,0.51544031,102650.0,102640.0,0.88576897]
[1747066010388,0.51544031,102650.0,102640.0,0.0845299]
[1747066010611,0.51544031,102650.0,102640.0,0.34]
[1747066011082,0.51544031,102650.0,102640.0,0.8589139]
[1747066011301,0.80988031,102650.0,102640.0,0.3671]
[1747066013643,0.80988031,102650.0,102640.0,0.34]
[1747066013875,0.81883515,102650.0,102640.0,0.8611139]
[1747066014703,0.80988031,102650.0,102640.0,0.8611139]
[1747066015120,0.80988031,102650.0,102640.0,0.3693]
[1747066018376,0.50876031,102650.0,102640.0,0.3693]
[1747066019309,0.00974136,102650.0,102640.0,1.1041548]
[1747066019577,0.48508015,102670.0,102660.0,0.369]
[1747066019861,0.51417764,102670.0,102660.0,1.06537244]
[1747066020081,0.51417764,102670.0,102660.0,1.07511304]
[1747066020082,0.23375758,102670.0,102660.0,1.07511304]
[1747066020345,0.22401821,102670.0,102660.0,1.06537244]
[1747066020547,0.21427856,102670.0,102660.0,1.05563174]
[1747066020775,0.20453881,102670.0,102660.0,0.029]
[1747066022411,0.20453881,102670.0,102660.0,0.22381784]
[1747066022663,0.02921877,102670.0,102660.0,0.78259339]
[1747066022879,0.0292181,102670.0,102660.0,0.79713424]
[1747066023105,0.24349666,102670.0,102660.0,0.7873943]